{"text_format":"3","workbook":"xlsx","n_sheets":1,"sheets":["Budget de dépenses"],"not_rendered":{"charts":2,"defined_names":3},"read":"whole","date_system":"1900"}

{"sheet":"Budget de dépenses","index":0,"n_rows":47,"n_cols":7,"rows_kept":47,"merged":[[0,1,0,4],[0,5,0,6],[16,1,16,6],[47,1,47,6]]}
[null,"Budget de dépenses",{"$nulls":3},"CONTOSO, 2013"]
[]
[]
[null," BUDGET PERSONNEL"]
{"$rows_empty":7}
[null,"STATUT","PERSONNEL","BUDGET","RÉEL","DIFFÉRENCE (€)","DIFFÉRENCE (%)"]
[null,{"$f":"IFERROR(tblDépensesPersonnel[[#This Row],[RÉEL]]/tblDépensesPersonnel[[#This Row],[BUDGET]],\"\")","v":{"v":1.13,"d":"$1.13"}},"Bureau",{"v":500,"d":"500.00 €"},{"v":565,"d":"565.00 €"},{"$f":"tblDépensesPersonnel[[#This Row],[BUDGET]]-tblDépensesPersonnel[[#This Row],[RÉEL]]","v":{"v":-65,"d":"-65.00 €"}},{"$f":"IFERROR(tblDépensesPersonnel[DIFFÉRENCE (€)]/tblDépensesPersonnel[BUDGET],\"\")","v":{"v":-0.13,"d":"-13 %"}}]
[null,{"$f":"IFERROR(tblDépensesPersonnel[[#This Row],[RÉEL]]/tblDépensesPersonnel[[#This Row],[BUDGET]],\"\")","v":{"v":1.2,"d":"$1.20"}},"Magasin",{"v":125,"d":"125.00 €"},{"v":150,"d":"150.00 €"},{"$f":"tblDépensesPersonnel[[#This Row],[BUDGET]]-tblDépensesPersonnel[[#This Row],[RÉEL]]","v":{"v":-25,"d":"-25.00 €"}},{"$f":"IFERROR(tblDépensesPersonnel[DIFFÉRENCE (€)]/tblDépensesPersonnel[BUDGET],\"\")","v":{"v":-0.2,"d":"-20 %"}}]
[null,{"$f":"IFERROR(tblDépensesPersonnel[[#This Row],[RÉEL]]/tblDépensesPersonnel[[#This Row],[BUDGET]],\"\")","v":{"v":1,"d":"$1.00"}},"Vendeurs",{"v":100,"d":"100.00 €"},{"v":100,"d":"100.00 €"},{"$f":"tblDépensesPersonnel[[#This Row],[BUDGET]]-tblDépensesPersonnel[[#This Row],[RÉEL]]","v":{"v":0,"d":"0.00 €"}},{"$f":"IFERROR(tblDépensesPersonnel[DIFFÉRENCE (€)]/tblDépensesPersonnel[BUDGET],\"\")","v":{"v":0,"d":"0 %"}}]
[null,{"$f":"IFERROR(tblDépensesPersonnel[[#This Row],[RÉEL]]/tblDépensesPersonnel[[#This Row],[BUDGET]],\"\")","v":{"v":0.9,"d":"$0.90"}},"Autre",{"v":100,"d":"100.00 €"},{"v":90,"d":"90.00 €"},{"$f":"tblDépensesPersonnel[[#This Row],[BUDGET]]-tblDépensesPersonnel[[#This Row],[RÉEL]]","v":{"v":10,"d":"10.00 €"}},{"$f":"IFERROR(tblDépensesPersonnel[DIFFÉRENCE (€)]/tblDépensesPersonnel[BUDGET],\"\")","v":{"v":0.1,"d":"10 %"}}]
[]
[]
[null," BUDGET DE FONCTIONNEMENT"]
{"$rows_empty":7}
[null,"STATUT","FONCTIONNEMENT","BUDGET","RÉEL","DIFFÉRENCE (€)","DIFFÉRENCE (%)"]
[null,{"$f":"IFERROR(tblDépensesFonctionnement[[#This Row],[RÉEL]]/tblDépensesFonctionnement[[#This Row],[BUDGET]],\"\")","v":{"v":0.98,"d":"$0.98"}},"Publicité",{"v":250,"d":"250.00 €"},{"v":245,"d":"245.00 €"},{"$f":"tblDépensesFonctionnement[[#This Row],[BUDGET]]-tblDépensesFonctionnement[[#This Row],[RÉEL]]","v":{"v":5,"d":"5.00 €"}},{"$f":"IFERROR(tblDépensesFonctionnement[[#This Row],[DIFFÉRENCE (€)]]/tblDépensesFonctionnement[[#This Row],[BUDGET]],\"\")","v":{"v":0.02,"d":"2 %"}}]
[null,{"$f":"IFERROR(tblDépensesFonctionnement[[#This Row],[RÉEL]]/tblDépensesFonctionnement[[#This Row],[BUDGET]],\"\")","v":{"v":1.2,"d":"$1.20"}},"Dettes",{"v":125,"d":"125.00 €"},{"v":150,"d":"150.00 €"},{"$f":"tblDépensesFonctionnement[[#This Row],[BUDGET]]-tblDépensesFonctionnement[[#This Row],[RÉEL]]","v":{"v":-25,"d":"-25.00 €"}},{"$f":"IFERROR(tblDépensesFonctionnement[[#This Row],[DIFFÉRENCE (€)]]/tblDépensesFonctionnement[[#This Row],[BUDGET]],\"\")","v":{"v":-0.2,"d":"-20 %"}}]
[null,{"$f":"IFERROR(tblDépensesFonctionnement[[#This Row],[RÉEL]]/tblDépensesFonctionnement[[#This Row],[BUDGET]],\"\")","v":{"v":1,"d":"$1.00"}},"Bénéfices",{"v":100,"d":"100.00 €"},{"v":100,"d":"100.00 €"},{"$f":"tblDépensesFonctionnement[[#This Row],[BUDGET]]-tblDépensesFonctionnement[[#This Row],[RÉEL]]","v":{"v":0,"d":"0.00 €"}},{"$f":"IFERROR(tblDépensesFonctionnement[[#This Row],[DIFFÉRENCE (€)]]/tblDépensesFonctionnement[[#This Row],[BUDGET]],\"\")","v":{"v":0,"d":"0 %"}}]
[null,{"$f":"IFERROR(tblDépensesFonctionnement[[#This Row],[RÉEL]]/tblDépensesFonctionnement[[#This Row],[BUDGET]],\"\")","v":{"v":0.9,"d":"$0.90"}},"Fournitures",{"v":100,"d":"100.00 €"},{"v":90,"d":"90.00 €"},{"$f":"tblDépensesFonctionnement[[#This Row],[BUDGET]]-tblDépensesFonctionnement[[#This Row],[RÉEL]]","v":{"v":10,"d":"10.00 €"}},{"$f":"IFERROR(tblDépensesFonctionnement[[#This Row],[DIFFÉRENCE (€)]]/tblDépensesFonctionnement[[#This Row],[BUDGET]],\"\")","v":{"v":0.1,"d":"10 %"}}]
[null,{"$f":"IFERROR(tblDépensesFonctionnement[[#This Row],[RÉEL]]/tblDépensesFonctionnement[[#This Row],[BUDGET]],\"\")","v":""},"Frais postaux",null,null,{"$f":"tblDépensesFonctionnement[[#This Row],[BUDGET]]-tblDépensesFonctionnement[[#This Row],[RÉEL]]","v":{"v":0,"d":"0.00 €"}},{"$f":"IFERROR(tblDépensesFonctionnement[[#This Row],[DIFFÉRENCE (€)]]/tblDépensesFonctionnement[[#This Row],[BUDGET]],\"\")","v":""}]
[null,{"$f":"IFERROR(tblDépensesFonctionnement[[#This Row],[RÉEL]]/tblDépensesFonctionnement[[#This Row],[BUDGET]],\"\")","v":""},"Loyer ou emprunt-logement",null,null,{"$f":"tblDépensesFonctionnement[[#This Row],[BUDGET]]-tblDépensesFonctionnement[[#This Row],[RÉEL]]","v":{"v":0,"d":"0.00 €"}},{"$f":"IFERROR(tblDépensesFonctionnement[[#This Row],[DIFFÉRENCE (€)]]/tblDépensesFonctionnement[[#This Row],[BUDGET]],\"\")","v":""}]
[null,{"$f":"IFERROR(tblDépensesFonctionnement[[#This Row],[RÉEL]]/tblDépensesFonctionnement[[#This Row],[BUDGET]],\"\")","v":""},"Dépenses des ventes",null,null,{"$f":"tblDépensesFonctionnement[[#This Row],[BUDGET]]-tblDépensesFonctionnement[[#This Row],[RÉEL]]","v":{"v":0,"d":"0.00 €"}},{"$f":"IFERROR(tblDépensesFonctionnement[[#This Row],[DIFFÉRENCE (€)]]/tblDépensesFonctionnement[[#This Row],[BUDGET]],\"\")","v":""}]
[null,{"$f":"IFERROR(tblDépensesFonctionnement[[#This Row],[RÉEL]]/tblDépensesFonctionnement[[#This Row],[BUDGET]],\"\")","v":""},"Taxes",null,null,{"$f":"tblDépensesFonctionnement[[#This Row],[BUDGET]]-tblDépensesFonctionnement[[#This Row],[RÉEL]]","v":{"v":0,"d":"0.00 €"}},{"$f":"IFERROR(tblDépensesFonctionnement[[#This Row],[DIFFÉRENCE (€)]]/tblDépensesFonctionnement[[#This Row],[BUDGET]],\"\")","v":""}]
[null,{"$f":"IFERROR(tblDépensesFonctionnement[[#This Row],[RÉEL]]/tblDépensesFonctionnement[[#This Row],[BUDGET]],\"\")","v":""},"Services",null,null,{"$f":"tblDépensesFonctionnement[[#This Row],[BUDGET]]-tblDépensesFonctionnement[[#This Row],[RÉEL]]","v":{"v":0,"d":"0.00 €"}},{"$f":"IFERROR(tblDépensesFonctionnement[[#This Row],[DIFFÉRENCE (€)]]/tblDépensesFonctionnement[[#This Row],[BUDGET]],\"\")","v":""}]
[null,{"$f":"IFERROR(tblDépensesFonctionnement[[#This Row],[RÉEL]]/tblDépensesFonctionnement[[#This Row],[BUDGET]],\"\")","v":""},"Autre",null,null,{"$f":"tblDépensesFonctionnement[[#This Row],[BUDGET]]-tblDépensesFonctionnement[[#This Row],[RÉEL]]","v":{"v":0,"d":"0.00 €"}},{"$f":"IFERROR(tblDépensesFonctionnement[[#This Row],[DIFFÉRENCE (€)]]/tblDépensesFonctionnement[[#This Row],[BUDGET]],\"\")","v":""}]
[null,{"$f":"IFERROR(tblDépensesFonctionnement[[#This Row],[RÉEL]]/tblDépensesFonctionnement[[#This Row],[BUDGET]],\"\")","v":""},"Assurance",null,null,{"$f":"tblDépensesFonctionnement[[#This Row],[BUDGET]]-tblDépensesFonctionnement[[#This Row],[RÉEL]]","v":{"v":0,"d":"0.00 €"}},{"$f":"IFERROR(tblDépensesFonctionnement[[#This Row],[DIFFÉRENCE (€)]]/tblDépensesFonctionnement[[#This Row],[BUDGET]],\"\")","v":""}]
[null,{"$f":"IFERROR(tblDépensesFonctionnement[[#This Row],[RÉEL]]/tblDépensesFonctionnement[[#This Row],[BUDGET]],\"\")","v":""},"Intérêts",null,null,{"$f":"tblDépensesFonctionnement[[#This Row],[BUDGET]]-tblDépensesFonctionnement[[#This Row],[RÉEL]]","v":{"v":0,"d":"0.00 €"}},{"$f":"IFERROR(tblDépensesFonctionnement[[#This Row],[DIFFÉRENCE (€)]]/tblDépensesFonctionnement[[#This Row],[BUDGET]],\"\")","v":""}]
[null,{"$f":"IFERROR(tblDépensesFonctionnement[[#This Row],[RÉEL]]/tblDépensesFonctionnement[[#This Row],[BUDGET]],\"\")","v":""},"Téléphone",null,null,{"$f":"tblDépensesFonctionnement[[#This Row],[BUDGET]]-tblDépensesFonctionnement[[#This Row],[RÉEL]]","v":{"v":0,"d":"0.00 €"}},{"$f":"IFERROR(tblDépensesFonctionnement[[#This Row],[DIFFÉRENCE (€)]]/tblDépensesFonctionnement[[#This Row],[BUDGET]],\"\")","v":""}]
[null,{"$f":"IFERROR(tblDépensesFonctionnement[[#This Row],[RÉEL]]/tblDépensesFonctionnement[[#This Row],[BUDGET]],\"\")","v":""},"Maintenance et réparations",null,null,{"$f":"tblDépensesFonctionnement[[#This Row],[BUDGET]]-tblDépensesFonctionnement[[#This Row],[RÉEL]]","v":{"v":0,"d":"0.00 €"}},{"$f":"IFERROR(tblDépensesFonctionnement[[#This Row],[DIFFÉRENCE (€)]]/tblDépensesFonctionnement[[#This Row],[BUDGET]],\"\")","v":""}]
[null,{"$f":"IFERROR(tblDépensesFonctionnement[[#This Row],[RÉEL]]/tblDépensesFonctionnement[[#This Row],[BUDGET]],\"\")","v":""},"Frais juridiques",null,null,{"$f":"tblDépensesFonctionnement[[#This Row],[BUDGET]]-tblDépensesFonctionnement[[#This Row],[RÉEL]]","v":{"v":0,"d":"0.00 €"}},{"$f":"IFERROR(tblDépensesFonctionnement[[#This Row],[DIFFÉRENCE (€)]]/tblDépensesFonctionnement[[#This Row],[BUDGET]],\"\")","v":""}]
[null,{"$f":"IFERROR(tblDépensesFonctionnement[[#This Row],[RÉEL]]/tblDépensesFonctionnement[[#This Row],[BUDGET]],\"\")","v":""},"Dépréciation",null,null,{"$f":"tblDépensesFonctionnement[[#This Row],[BUDGET]]-tblDépensesFonctionnement[[#This Row],[RÉEL]]","v":{"v":0,"d":"0.00 €"}},{"$f":"IFERROR(tblDépensesFonctionnement[[#This Row],[DIFFÉRENCE (€)]]/tblDépensesFonctionnement[[#This Row],[BUDGET]],\"\")","v":""}]
[null,{"$f":"IFERROR(tblDépensesFonctionnement[[#This Row],[RÉEL]]/tblDépensesFonctionnement[[#This Row],[BUDGET]],\"\")","v":""},"Frais de transport",null,null,{"$f":"tblDépensesFonctionnement[[#This Row],[BUDGET]]-tblDépensesFonctionnement[[#This Row],[RÉEL]]","v":{"v":0,"d":"0.00 €"}},{"$f":"IFERROR(tblDépensesFonctionnement[[#This Row],[DIFFÉRENCE (€)]]/tblDépensesFonctionnement[[#This Row],[BUDGET]],\"\")","v":""}]
[null,{"$f":"IFERROR(tblDépensesFonctionnement[[#This Row],[RÉEL]]/tblDépensesFonctionnement[[#This Row],[BUDGET]],\"\")","v":""},"Stockage",null,null,{"$f":"tblDépensesFonctionnement[[#This Row],[BUDGET]]-tblDépensesFonctionnement[[#This Row],[RÉEL]]","v":{"v":0,"d":"0.00 €"}},{"$f":"IFERROR(tblDépensesFonctionnement[[#This Row],[DIFFÉRENCE (€)]]/tblDépensesFonctionnement[[#This Row],[BUDGET]],\"\")","v":""}]
[null,{"$f":"IFERROR(tblDépensesFonctionnement[[#This Row],[RÉEL]]/tblDépensesFonctionnement[[#This Row],[BUDGET]],\"\")","v":""},"Autre",null,null,{"$f":"tblDépensesFonctionnement[[#This Row],[BUDGET]]-tblDépensesFonctionnement[[#This Row],[RÉEL]]","v":{"v":0,"d":"0.00 €"}},{"$f":"IFERROR(tblDépensesFonctionnement[[#This Row],[DIFFÉRENCE (€)]]/tblDépensesFonctionnement[[#This Row],[BUDGET]],\"\")","v":""}]
[null,null,"Total des dépenses",{"$f":"SUBTOTAL(109,tblDépensesFonctionnement[BUDGET],tblDépensesPersonnel[BUDGET])","v":{"v":1400,"d":"1,400.00 €"}},{"$f":"SUBTOTAL(109,tblDépensesFonctionnement[RÉEL],tblDépensesPersonnel[RÉEL])","v":{"v":1490,"d":"1,490.00 €"}},{"$f":"SUBTOTAL(109,tblDépensesFonctionnement[DIFFÉRENCE (€)],tblDépensesPersonnel[DIFFÉRENCE (€)])","v":{"v":-90,"d":"-90.00 €"}},{"$f":"IFERROR(SUM(tblDépensesFonctionnement[[#Totals],[DIFFÉRENCE (€)]]/tblDépensesFonctionnement[[#Totals],[BUDGET]]),\"\")","v":{"v":-0.06428571428571428,"d":"-6 %"}}]